Cogmind - Beta 13 @@@ ROGUE MODE // 2024.03.10 @ 16:29:01 // Winter2019/RPGLIKE Player: H3-RMN Result: Destroyed self via exploding Power Conduit Performance ------------- Evolutions (5) 2500 Regions Visited (16) 3200 Robots Destroyed (317) 1585 Value Destroyed (16537) 16537 Prototype IDs (43) 860 Alien Tech Used (0) 0 Bonus (13034) 13034 TOTAL SCORE: 37716 Bonus ------- Triggered High Security 500 High Alert Combat Kills 6387 Follower Combat Kills 2568 Entered Garrisons 800 Used RIF Installer 2500 Entered DSFs 500 Friendly Fire -221 Cogmind --------- Core Integrity 0/1000 Matter 290/300 Energy 234/430 System Corruption 1% Temperature Cool (18) Movement Hovering (58) Location -5/Factory Parts ------- > --- POWER (2) -------- Particle Reactor Light Quantum Reactor > --- PROPULSION (5) --- Combat Gravmag System Antigrav Array Antigrav Array > --- UTILITY (12) ----- Advanced Terrain Scanner Experimental Core Analyzer Improved Armor Integrity Analyzer Improved Weapon Cycler Experimental Reaction Control System Centrium Light Armor Plating Advanced Shield Generator Relay Coupler [NC] (3) Relay Coupler [Grunt] (11) Relay Coupler [Hunter] (37) Long-range Tractor Beam Improved Trap Extractor (4/6 Fusion Bomb) > --- WEAPON (4) ------- Hypervelocity Railgun Compact Linear Accelerator Improved Remote Datajack Phasing Sabre > --- INVENTORY (5) ---- Protomatter-66 Energy Well (350) Gravity Neutralizer Improved Plasma Cutter Peak State ------------ > --- POWER ------------ Particle Reactor Light Quantum Reactor > --- PROPULSION ------- Combat Gravmag System Antigrav Array Antigrav Array > --- UTILITY ---------- Advanced Terrain Scanner Experimental Core Analyzer Improved Armor Integrity Analyzer Improved Weapon Cycler Experimental Reaction Control System Centrium Light Armor Plating Advanced Shield Generator Relay Coupler [NC] Relay Coupler [Grunt] Relay Coupler [Sentry] Relay Coupler [Hunter] Improved Dynamic Insulation System > --- WEAPON ----------- Hypervelocity Railgun Compact Linear Accelerator Improved Remote Datajack Phasing Sabre > --- INVENTORY -------- Gravity Neutralizer Advanced System Shield Improved System Restoration Module Long-range Tractor Beam Improved Trap Extractor [Rating: 159] Favorites ----------- Power Particle Reactor Engine Improved Ion Engine Reactor Particle Reactor Propulsion Combat Gravmag System Treads Armored Medium Treads Wheel Wheel Hover Unit Combat Gravmag System Flight Unit Flightbrick Utility Relay Coupler [NC] Device Shield Generator Storage Humpback Processor Experimental Core Analyzer Hackware Relay Coupler [NC] Protection Hardened Light Armor Plating Weapon Enhanced Autogun Energy Gun Heavy Particle Gun Energy Cannon Particle Cannon Ballistic Gun Enhanced Autogun Ballistic Cannon Compact Linear Accelerator Launcher Grenade Launcher Special Weapon Improved Remote Datajack Impact Weapon Makeshift Hammer Slashing Weapon Phasing Sabre Build | -11 -10 -10 -10 -8 -8 -8 -8 -7 -7 -6 -6 -6 -6 -5 -5 -5 ------- Run | Yrd Mat Min Sub Mat Gar Mat Gar Fac DSF Fac Gar Fac Gar Fac Was Fac Slots Evolved 19 | 3 2 . 4 . . 4 1 . . 2 2 . . 1 . . Power 1 | . . . 1 . . . . . . . . . . . . . Propulsion 4 | 1 . . 2 . . . . . . . 1 . . . . . Utility 11 | 1 2 . 1 . . 3 1 . . 2 . . . 1 . . Weapon 3 | 1 . . . . . 1 . . . . 1 . . . . . Parts Attached 219 | 8 19 7 14 8 6 29 19 . 8 27 26 11 10 10 1 16 Power 11 | 1 1 . 1 . . 1 . . 2 . 2 . . 2 . 1 Engine 6 | 1 1 . 1 . . 1 . . 2 . . . . . . . Core . | . . . . . . . . . . . . . . . . . Reactor 5 | . . . . . . . . . . . 2 . . 2 . 1 Propulsion 33 | 3 3 . 4 . . . 8 . 1 9 5 . . . . . Treads 2 | . . . . . . . 2 . . . . . . . . . Leg . | . . . . . . . . . . . . . . . . . Wheel 9 | 3 3 . 3 . . . . . . . . . . . . . Hover 20 | . . . . . . . 5 . 1 9 5 . . . . . Flight 2 | . . . 1 . . . 1 . . . . . . . . . Utility 127 | 2 11 2 8 6 5 10 8 . 5 16 13 11 10 7 1 12 Device 59 | 2 3 1 3 3 1 4 4 . . 10 4 7 1 4 1 11 Storage 1 | . . . 1 . . . . . . . . . . . . . Processor 9 | . 1 . . 2 . 1 . . 1 . 2 1 . 1 . . Hackware 26 | . . . . . 2 3 4 . 3 3 3 2 6 . . . Protection 32 | . 7 1 4 1 2 2 . . 1 3 4 1 3 2 . 1 Artifact . | . . . . . . . . . . . . . . . . . Weapon 48 | 2 4 5 1 2 1 18 3 . . 2 6 . . 1 . 3 Energy Gun 2 | . . . . 2 . . . . . . . . . . . . Energy Cannon 1 | . 1 . . . . . . . . . . . . . . . Ballistic Gun 24 | 2 3 2 . . . 11 1 . . 2 2 . . . . 1 Ballistic Cannon 5 | . . 1 . . 1 . . . . . 2 . . 1 . . Launcher 2 | . . 2 . . . . . . . . . . . . . . Special Weapon 3 | . . . . . . . 1 . . . 1 . . . . 1 Impact Weapon 9 | . . . 1 . . 7 1 . . . . . . . . . Slashing Weapon 2 | . . . . . . . . . . . 1 . . . . 1 Piercing Weapon . | . . . . . . . . . . . . . . . . . Special Melee Weapon . | . . . . . . . . . . . . . . . . . Unidentified Prototypes 13 | . . 1 1 2 . 2 . . . 1 4 1 . . . 1 Corrupted Parts 1 | . . . . . . . . . . . . . . . 1 . System Corruption 8 | . . . . . . . . . . . . . . . 8 . Parts Lost 4 | . . . . . . 2 1 . . 1 . . . . . . Power 1 | . . . . . . 1 . . . . . . . . . . Propulsion 1 | . . . . . . . 1 . . . . . . . . . Utility 2 | . . . . . . 1 . . . 1 . . . . . . Weapon . | . . . . . . . . . . . . . . . . . Highest Loss Streak 1 | . . . . . . 1 1 . . 1 . . . . . . To Critical Strikes 1 | . . . . . . . 1 . . . . . . . . . Average Slot Usage (%) 86 | . 98 100 85 58 54 76 85 100 94 95 96 90 89 90 91 90 Engine 6 | . 12 11 9 9 . 11 10 11 11 10 3 . . . . . Reactor 2 | . . . . . . . . . . . 5 9 9 8 8 8 Wheel 6 | . 24 22 19 . . . . . . . . . . . . . Hover 6 | . . . . . . . 1 22 16 16 16 13 13 13 13 13 Flight 1 | . . . 1 6 6 5 4 . . . . . . . . . Device 19 | . 18 22 25 23 25 22 16 11 5 12 14 13 18 17 21 21 Processor 5 | . . . . 2 9 7 7 . 3 5 8 12 9 10 8 8 Hackware 13 | . . . . . 4 14 23 33 33 32 24 18 17 17 17 16 Protection 6 | . 17 22 9 4 1 4 5 5 5 2 4 4 3 3 4 3 Energy Cannon 2 | . 3 11 7 . . . . . . . . . . . . . Ballistic Gun 5 | . 20 4 . . . 6 11 11 11 9 9 4 4 4 4 4 Ballistic Cannon 3 | . . 6 8 4 . . . . . . . 4 4 3 4 4 Special Weapon 2 | . . . . . . . 1 5 5 5 4 4 4 4 4 3 Impact Weapon 1 | . . . . 6 6 2 2 . . . . . . . . . Slashing Weapon 1 | . . . . . . . . . . . 2 4 4 4 4 4 Naked Turns . | . . . . . . . . . . . . . . . . . Heaviest Build 218 | 8 26 27 218 29 14 22 22 20 51 52 65 66 69 69 69 70 Greatest Support 107 | 26 20 20 40 29 13 34 107 51 53 64 76 88 88 88 76 76 Greatest Overweight (x) 5 | . 1 1 5 3 1 . 1 . . . 1 . . 5 . . Average Overweight (x) . | . . 1 1 . . . . . . . . . . . . . Largest Inventory Capacity 32 | 2 2 2 32 4 4 4 4 4 4 4 5 5 5 5 5 5 Average Capacity 5 | 1 2 2 10 2 4 4 4 4 4 4 4 5 5 5 5 5 Most Carried 5 | 1 2 2 4 4 4 4 4 4 4 4 5 5 5 5 5 5 Average Carried 3 | . 1 2 2 2 3 3 3 4 3 3 3 4 4 4 5 4 Final Capacity 5 | 2 2 2 2 4 4 4 4 4 4 4 5 5 5 5 5 5 Final Carried 5 | 1 2 2 2 4 4 4 4 4 4 3 5 5 5 5 5 4 Class Distribution -------------------- 23% | Mutant 21% | Bothacker-Gunner 10% | Hacker-Tank 9% | Hacker-Scout 5% | Hacker-Skirmisher 4% | Scout 4% | Hauler-Mutant 3% | Hacker-Mutant 3% | Commander-Gunner Dominant Class ---------------- Mutant | -10/Materials Mutant | -10/Mines Mutant | -10/Subcaves Derelict-Assassin | -8/Materials Scout | -8/Garrison Hacker-Scout | -8/Materials Hacker-Scout | -8/Garrison Hacker-Scout | -7/Factory Hacker-Tank | -7/DSF Hacker-Skirmisher | -6/Factory Hacker-Tank | -6/Garrison Bothacker-Gunner | -6/Factory Bothacker-Gunner | -6/Garrison Commander-Gunner | -5/Factory Scavenger-Gunner | -5/Waste Bothacker-Gunner | -5/Factory Resources | -11 -10 -10 -10 -8 -8 -8 -8 -7 -7 -6 -6 -6 -6 -5 -5 -5 ----------- Run | Yrd Mat Min Sub Mat Gar Mat Gar Fac DSF Fac Gar Fac Gar Fac Was Fac Matter Collected 10438 | 298 775 152 475 195 116 664 1549 . 348 1974 1062 903 1010 279 59 579 Remotely 715 | . 32 . 315 . . . . . . . . . . . . 368 Salvage Created 14613 | 115 804 198 236 466 1248 1290 1612 . 562 979 1456 3195 1310 323 417 402 Parts 719 | 6 40 26 20 26 39 56 99 . 18 76 79 126 68 13 4 23 Haulers Intercepted 10 | . 1 . . 2 . 4 . . . . . 3 . . . . Recyclers Shooed 4 | . 2 1 . . . . . . . . . 1 . . . . Parts Field Recycled . | . . . . . . . . . . . . . . . . . Retrieved Matter . | . . . . . . . . . . . . . . . . . Parts Self-Destructed 12 | . . . 12 . . . . . . . . . . . . . Prevented . | . . . . . . . . . . . . . . . . . Kills | -11 -10 -10 -10 -8 -8 -8 -8 -7 -7 -6 -6 -6 -6 -5 -5 -5 ------- Run | Yrd Mat Min Sub Mat Gar Mat Gar Fac DSF Fac Gar Fac Gar Fac Was Fac Combat Hostiles Destroyed 266 | . 12 8 7 16 27 29 44 . 6 22 23 46 12 2 1 11 Melee 83 | . . . . 7 13 11 2 . . . 8 33 2 2 1 4 Guns 125 | . 10 1 . . . 9 42 . 6 22 15 8 9 . . 3 Cannons 22 | . 2 1 7 4 . . . . . . . 5 1 . . 2 AOE 8 | . . 6 . . . . . . . . . . . . . 2 Classes Destroyed 23 | 2 7 . 2 2 2 2 3 . . . 1 . . . 1 1 Worker 10 | . 1 2 . . . 1 . . . 3 . 2 . 1 . . Builder 6 | . 1 1 . . . . . . . 3 . . . 1 . . Tunneler 4 | 2 . 1 . . . . . . . 1 . . . . . . Hauler 10 | . 1 . . 2 . 4 . . . . . 3 . . . . Recycler 9 | 1 2 1 . . . 1 . . . . . 2 . 2 . . Carrier 1 | . . . . . 1 . . . . . . . . . . . Mechanic 4 | . . . . 1 . 2 . . . . . . . . . 1 Operator 5 | . 1 . . 1 . . . . . 1 . 2 . . . . Watcher 2 | . 2 . . . . . . . . . . . . . . . Swarmer 67 | . 3 6 1 9 4 5 10 . 3 7 4 8 5 2 . . Cutter 1 | . . . . . . . . . . . . . . . . 1 Saboteur 5 | . . . . . . . 1 . . . 3 . . . . 1 Grunt 111 | . 9 2 2 3 14 16 17 . 3 11 8 24 . . . 2 Brawler 6 | . . . . . . 1 1 . . . . 3 . . . 1 Duelist 10 | . . . . . . 1 1 . . 2 1 2 2 . . 1 Sentry 36 | . . . 1 3 7 5 8 . . 1 2 6 2 . . 1 Specialist 1 | . . . . . . . 1 . . . . . . . . . Hunter 10 | . . . . 1 1 1 1 . . 1 1 2 2 . . . Programmer 11 | . . . . . 1 . 2 . . . 3 1 . . . 4 Behemoth 3 | . . . . . . . 2 . . . . . 1 . . . Compactor 1 | . . . . . . . . . . . . . . . 1 . Executioner 1 | . . . . . . . . . . . 1 . . . . . Subdweller 3 | . . . 3 . . . . . . . . . . . . . Thug 1 | . . . 1 . . . . . . . . . . . . . Best Kill Streak 7 | 1 5 4 2 5 5 4 6 . 3 4 3 7 5 4 1 3 Combat Bots Only 6 | . 4 3 2 5 4 4 6 . 3 3 3 6 5 2 1 3 Max Kills in Single Turn 3 | 1 1 2 1 1 1 1 2 . 1 1 1 2 1 1 1 3 Gunslinging 1 | . . . . . . . 1 . . . . . . . . . Exploded 2 | . . 2 . . . . . . . . . . . . . 2 Melee 1 | . . . . 1 1 1 1 . . . 1 1 1 1 1 1 Uniques/NPCs Destroyed . | . . . . . . . . . . . . . . . . . Combat | -11 -10 -10 -10 -8 -8 -8 -8 -7 -7 -6 -6 -6 -6 -5 -5 -5 -------- Run | Yrd Mat Min Sub Mat Gar Mat Gar Fac DSF Fac Gar Fac Gar Fac Was Fac Hostile Shots Fired 2119 | . 75 7 60 114 173 152 239 . 35 274 234 442 106 19 . 189 Missed 811 | . 28 1 22 27 37 40 74 . 14 94 109 203 56 5 . 101 Damage Taken 15580 | . 533 80 423 718 1527 1266 1568 . 159 2261 1722 2610 641 437 . 1635 Core 11398 | . 401 45 261 535 1174 943 1126 . 104 1707 1281 1843 470 331 . 1177 Absorbed by Shields 5352 | . 6 29 163 252 402 390 591 . 67 837 632 992 244 150 . 597 Redirected to Core 9885 | . 235 34 231 435 1062 873 1029 . 98 1498 1070 1616 409 239 . 1056 Ignored by Resistances 183 | . . . 11 61 . . . . 72 39 . . . . . . Regen/Repaired (Parts) 39 | . . . . 8 . 12 . . . 19 . . . . . . Core Remaining (%) 95 | 100 . . 97 . . . 93 . 88 . . . 100 . . . Volleys Fired 1099 | 7 71 15 108 23 10 98 142 1 34 204 95 80 142 22 7 40 Largest 3 | 2 2 2 2 1 1 3 3 2 2 2 2 2 1 2 1 2 Hottest 110 | 40 88 107 107 39 39 75 75 50 50 50 70 110 70 110 7 110 Shots Fired 1742 | 14 142 23 144 23 10 118 332 2 64 347 176 114 142 27 7 57 Gun 1306 | 14 125 4 . . . 118 330 2 60 299 161 53 102 5 . 33 Cannon 275 | . 17 14 144 23 10 . . . . . 4 34 8 5 . 16 Launcher 5 | . . 5 . . . . . . . . . . . . . . Special 156 | . . . . . . . 2 . 4 48 11 27 32 17 7 8 Kinetic 1477 | 14 125 8 67 23 10 118 330 2 60 299 165 87 110 10 . 49 Thermal 104 | . 17 10 77 . . . . . . . . . . . . . Explosive 5 | . . 5 . . . . . . . . . . . . . . Electromagnetic . | . . . . . . . . . . . . . . . . . Robot Hit Streak 28 | 4 8 7 11 1 . 12 24 . 15 23 18 14 28 5 4 10 Robot Miss Streak 9 | 2 3 1 3 4 . 8 6 2 3 9 3 4 1 4 1 4 Penetration Max 2 | . . . . . . . . . . . . 2 2 . . 1 Secondary Targets 25 | . 2 . . . . 1 13 . 2 2 5 . . . . . Max Gunslinging Chain 1 | . 1 . . . . 1 1 . 1 1 1 . . . . . Shots Hit Robots 1350 | 8 68 9 46 31 66 124 210 . 42 210 131 176 146 21 16 46 Core Hits 511 | 4 28 16 17 9 12 38 73 . 17 77 55 81 57 5 2 20 Critical Kills 29 | . 2 . . 1 4 2 1 . 1 . . 6 10 . . 2 Critical Parts Destroyed 56 | . . . . 5 14 6 2 . . . . 6 15 1 . 7 Critical Strikes 115 | . 2 1 2 7 18 8 3 . 1 . 8 19 31 2 1 12 Meltdown 1 | . 1 . . . . . . . . . . . . . . . Destroy 58 | . 1 . . . . . 3 . 1 . . 12 30 1 . 10 Blast 8 | . . 1 2 1 . . . . . . . 2 . . . 2 Smash 32 | . . . . 6 18 8 . . . . . . . . . . Sever 16 | . . . . . . . . . . . 8 5 1 1 1 . Melee Attacks 593 | . . . 10 35 142 79 35 . . . 70 135 44 7 10 26 Impact 301 | . . . 10 35 142 79 35 . . . . . . . . . Slashing 292 | . . . . . . . . . . . 70 135 44 7 10 26 Piercing . | . . . . . . . . . . . . . . . . . Sneak Attacks 38 | . . . 1 5 3 6 . . . . 1 10 1 1 10 . Combat Hostiles 21 | . . . 1 1 2 1 . . . . 1 4 1 . 10 . Follow-up Attacks . | . . . . . . . . . . . . . . . . . Damage Inflicted 33656 | 94 1097 579 1119 1485 3159 3727 3875 . 693 3860 3179 5965 2318 519 412 1575 Guns 12356 | 94 759 29 . . . 1308 3724 . 693 3171 1182 335 812 35 . 214 Cannons 3240 | . 190 186 1022 200 . . . . . . . 803 283 126 . 430 Explosions 1528 | . 148 364 . . . . . . . 685 . . . . . 331 Melee 16478 | . . . 97 1285 3159 2419 151 . . . 1997 4827 1223 308 412 600 Ramming 54 | . . . . . . . . . . 4 . . . 50 . . Kinetic 14820 | 94 759 112 539 200 . 1308 3724 . 693 3171 1182 1138 1095 161 . 644 Thermal 1338 | . 338 103 483 . . . . . . 83 . . . . . 331 Explosive 929 | . . 364 . . . . . . . 565 . . . . . . Electromagnetic 37 | . . . . . . . . . . 37 . . . . . . Impact 7111 | . . . 97 1285 3159 2419 151 . . . . . . . . . Slashing 9367 | . . . . . . . . . . . 1997 4827 1223 308 412 600 Piercing . | . . . . . . . . . . . . . . . . . Highest Corruption 24 | . . . . . 1 1 2 . . 4 6 6 . 2 24 24 Average Corruption 4 | . . . . . 1 1 1 . . 1 3 5 . 1 11 12 Corruption Purged 43 | . . . . . . 1 2 . . 4 . 6 . 2 . 28 Corruption Blocked . | . . . . . . . . . . . . . . . . . Effects 85 | . . . . . 1 6 1 . . 14 19 11 . . 5 28 Message Errors 21 | . . . . . . . 1 . . 4 2 2 . . 2 10 Matter Fused 21 | . . . . . 1 4 . . . 3 7 2 . . . 4 Heat Flow Errors 8 | . . . . . . . . . . 1 2 2 . . 1 2 Energy Discharges 7 | . . . . . . . . . . 1 1 1 . . . 4 Parts Rejected 2 | . . . . . . . . . . . . 1 . . . 1 Parts Fused 1 | . . . . . . . . . . 1 . . . . . . Data Loss (minor) 15 | . . . . . . 1 . . . 2 4 3 . . 2 3 Data Loss (major) 2 | . . . . . . 1 . . . . 1 . . . . . Misfires 3 | . . . . . . . . . . . 2 . . . . 1 Alerts 2 | . . . . . . . . . . 1 . . . . . 1 Misdirections 2 | . . . . . . . . . . . . . . . . 2 Weapon Failures 1 | . . . . . . . . . . 1 . . . . . . Overload Shots . | . . . . . . . . . . . . . . . . . Overflow Damage 3278 | . 68 . 47 536 975 825 17 . . . 155 318 151 24 . 162 Projectiles 35 | . . . . . . . . . . . . 6 . . . 29 Explosions 166 | . 68 . . . . . . . . . . . . . . 98 Melee 3077 | . . . 47 536 975 825 17 . . . 155 312 151 24 . 35 Knockbacks 39 | . . 1 3 9 9 10 . . . . . 6 . . . 1 Impact 25 | . . . 1 5 9 10 . . . . . . . . . . Kinetic 12 | . . 1 2 4 . . . . . . . 4 . . . 1 Secondary 2 | . . . . . . . . . . . . 2 . . . . Self-Inflicted Damage 251 | . . 37 . . . . . . . 2 . . . 25 . 187 Shots 3 | . . 1 . . . . . . . . . . . . . 2 Rammed 2 | . . . . . . . . . . 1 . . . 1 . . Targets Rammed 2 | . . . . . . . . . . 1 . . . 1 . . Kicked . | . . . . . . . . . . . . . . . . . Crushed . | . . . . . . . . . . . . . . . . . Highest Temperature 374 | . 300 208 110 374 . 109 261 27 . 227 247 335 143 156 199 254 Average Temperature 79 | . 92 90 30 168 . 25 62 15 . 63 30 117 24 93 108 106 Received Heat Transfer 4420 | . 275 22 66 278 674 623 723 . 30 420 337 793 48 6 . 125 Effects 7 | . 2 . . 3 . . . . . 1 . . . . . 1 Shutdowns 1 | . . . . 1 . . . . . . . . . . . . Energy Bleed 2 | . . . . 1 . . . . . . . . . . . 1 Interference 3 | . 2 . . . . . . . . 1 . . . . . . Short Circuit 1 | . . . . 1 . . . . . . . . . . . . Siege Activations . | . . . . . . . . . . . . . . . . . Robots Corrupted . | . . . . . . . . . . . . . . . . . Combat Hostiles . | . . . . . . . . . . . . . . . . . Parts Fried 42 | . . . . 10 18 12 1 . . . . . . 1 . . Impact Corruptions 74 | . . . 1 20 27 24 1 . . . . . . 1 . . Robots Melted 1 | . 1 . . . . . . . . . . . . . . . Combat Hostiles . | . . . . . . . . . . . . . . . . . Parts Melted 6 | . . . . . . . . . . . 5 1 . . . . Heat Transferred 1719 | . 433 185 851 . . . . . . 50 . . . . . 200 Parts Sabotaged 5 | . . . . . . . . . . . 3 . . . . 2 Parts Stolen . | . . . . . . . . . . . . . . . . . Parts Stripped . | . . . . . . . . . . . . . . . . . Power Chain Reactions . | . . . . . . . . . . . . . . . . . Alert | -11 -10 -10 -10 -8 -8 -8 -8 -7 -7 -6 -6 -6 -6 -5 -5 -5 ------- Run | Yrd Mat Min Sub Mat Gar Mat Gar Fac DSF Fac Gar Fac Gar Fac Was Fac Peak Influence 2736 | 15 331 392 . 720 1716 1128 2419 1284 1100 1796 2736 1605 1606 1299 499 574 Initial 1436 | . 9 52 . 148 362 836 726 1269 898 577 1257 1436 889 753 454 349 Average 1000 | 6 134 277 . 537 1065 906 1641 1279 961 684 2014 1178 1296 958 487 401 Maximum Alert Level 5 | . 1 1 . 3 5 4 5 4 4 5 5 5 5 4 2 2 Low Security (%) 10 | 100 88 4 . 4 . . . . . 17 . . . . . . Level 1 12 | . 11 95 . 10 9 . . . . 19 . . . . . 46 Level 2 9 | . . . . 59 11 . . . . 16 . . . . 100 53 Level 3 28 | . . . . 25 24 95 22 . 96 25 . 45 16 80 . . Level 4 23 | . . . . . 50 4 20 100 3 12 22 43 80 19 . . Level 5 15 | . . . . . 4 . 57 . . 1 77 10 2 . . . High Security . | . . . . . . . . . . 6 . . . . . . Max Security . | . . . . . . . . . . . . . . . . . Squads Dispatched 54 | . 2 . . 2 . 8 . . . 19 . 11 . 4 . 8 Investigation 15 | . 1 . . . . 2 . . . 6 . 4 . 1 . 1 Extermination 4 | . . . . . . . . . . 1 . 1 . 1 . 1 Reinforcement 18 | . 1 . . 1 . 4 . . . 4 . 2 . 2 . 4 Assault 11 | . . . . 1 . 1 . . . 5 . 3 . . . 1 Garrison 6 | . . . . . . 1 . . . 3 . 1 . . . 1 Intercept . | . . . . . . . . . . . . . . . . . Searches Triggered . | . . . . . . . . . . . . . . . . . Construction Impeded 3 | . . . . 1 . . . . . . . . . 1 . 1 Haulers Reinforced 1 | . . . . . . . . . . 1 . . . . . . Active Scanning Responses . | . . . . . . . . . . . . . . . . . Cargo Convoy Interrupts . | . . . . . . . . . . . . . . . . . Stealth | -11 -10 -10 -10 -8 -8 -8 -8 -7 -7 -6 -6 -6 -6 -5 -5 -5 --------- Run | Yrd Mat Min Sub Mat Gar Mat Gar Fac DSF Fac Gar Fac Gar Fac Was Fac Distress Signals 17 | . 1 . . 1 . 5 . . . 4 . 1 . 1 . 4 Communications Jammed . | . . . . . . . . . . . . . . . . . Distress Signals . | . . . . . . . . . . . . . . . . . Times Spotted 557 | . 17 6 34 33 28 68 50 1 10 102 42 71 31 23 4 37 Peak Tracking Total 10 | . 3 3 6 10 4 8 6 1 4 10 7 8 9 7 2 8 Tactical Retreats 35 | . . . 2 2 3 1 1 . . 14 2 5 1 1 . 3 Traps | -11 -10 -10 -10 -8 -8 -8 -8 -7 -7 -6 -6 -6 -6 -5 -5 -5 ------- Run | Yrd Mat Min Sub Mat Gar Mat Gar Fac DSF Fac Gar Fac Gar Fac Was Fac Traps Triggered 47 | . 3 . 1 . 5 . 13 . . 2 7 4 4 5 . 3 Indirectly . | . . . . . . . . . . . . . . . . . Trap Hack Attempts . | . . . . . . . . . . . . . . . . . Triggered . | . . . . . . . . . . . . . . . . . Disarmed . | . . . . . . . . . . . . . . . . . Reprogrammed . | . . . . . . . . . . . . . . . . . Reused 1 | . . . . . . . . . . . . . . . . 1 Traps Extracted . | . . . . . . . . . . . . . . . . . Installed 2 | . . . . . . . . . . . . . . . . 2 Triggered 2 | . . . . . 1 . . . . . . . . . . 1 Most Traps Carried 6 | . . . . . . . . . . . . . 6 6 6 6 Machines | -11 -10 -10 -10 -8 -8 -8 -8 -7 -7 -6 -6 -6 -6 -5 -5 -5 ---------- Run | Yrd Mat Min Sub Mat Gar Mat Gar Fac DSF Fac Gar Fac Gar Fac Was Fac Machines Disabled 89 | . 6 8 3 2 7 . 12 . 1 22 8 2 14 . . 4 Max in Single Turn 10 | . 2 4 1 1 2 . 2 . 1 10 2 1 1 . . 3 Garrison Access 7 | . . . . . . . . . . 3 . 2 . 1 . 1 Garrison Relay 20 | . . . . . 5 . 6 . . . 5 . 4 . . . Phase Generator 3 | . . . . . 1 . 1 . . . 1 . . . . . Machines Repaired . | . . . . . . . . . . . . . . . . . Machines Dismantled . | . . . . . . . . . . . . . . . . . Machines Sabotaged . | . . . . . . . . . . . . . . . . . Overloaded Fab Kills . | . . . . . . . . . . . . . . . . . Hacking | -11 -10 -10 -10 -8 -8 -8 -8 -7 -7 -6 -6 -6 -6 -5 -5 -5 --------- Run | Yrd Mat Min Sub Mat Gar Mat Gar Fac DSF Fac Gar Fac Gar Fac Was Fac Machines Accessed 89 | . 7 . 2 3 3 8 3 1 . 23 3 18 3 8 . 7 Terminals 50 | . 6 . . 1 3 4 3 1 . 10 3 9 3 4 . 3 Fabricators 5 | . . . . . . . . . . 4 . 1 . . . . Repair Stations 9 | . . . . 1 . 2 . . . 1 . 4 . . . 1 Recycling Units 6 | . 1 . . . . 1 . . . 2 . . . 2 . . Scanalyzers 6 | . . . . . . . . . . 2 . 1 . 1 . 2 Garrison Access 11 | . . . . 1 . 1 . . . 4 . 3 . 1 . 1 Total Hacks 274 | . 28 . 2 16 7 37 7 1 . 80 9 44 7 19 . 17 Successful 151 | . 12 . 2 8 2 22 4 1 . 57 5 17 2 11 . 8 Failed 122 | . 16 . . 8 5 15 3 . . 22 4 27 5 8 . 9 Catastrophic 20 | . 1 . . 1 1 2 1 . . 1 1 6 . 3 . 3 Database Lockouts 1 | . . . . . . . . . . 1 . . . . . . Manual 92 | . 10 . . 5 2 20 3 . . 30 4 9 1 5 . 3 Terminals 178 | . 26 . . 8 7 23 7 1 . 49 9 28 7 7 . 6 Fabricators 11 | . . . . . . . . . . 9 . 2 . . . . Repair Stations 18 | . . . . 5 . 4 . . . 3 . 5 . . . 1 Recycling Units 18 | . 2 . . . . 5 . . . 5 . . . 6 . . Scanalyzers 28 | . . . . . . . . . . 8 . 6 . 5 . 9 Garrison Access 19 | . . . . 3 . 5 . . . 6 . 3 . 1 . 1 Terminal Hacks 65 | . 10 . 2 2 2 8 3 1 . 21 5 6 2 3 . . Record 1 | . . . 1 . . . . . . . . . . . . . Part Schematic 8 | . . . . . . 1 . . . 4 2 1 . . . . Robot Schematic 1 | . . . . . . . . . . 1 . . . . . . Robot Analysis 4 | . 3 . . . . 1 . . . . . . . . . . Prototype ID Bank 8 | . 3 . . 1 . 1 . . . 2 . 1 . . . . Open Door 3 | . . . . . . . 1 . . . 1 . 1 . . . Open DSF 2 | . . . . . . . . 1 . 1 . . . . . . Level Access Points 1 | . . . . . . . . . . 1 . . . . . . Branch Access Points 3 | . 1 . . 1 . . . . . 1 . . . . . . Emergency Access Points 3 | . . . . . . . 1 . . . 1 . 1 . . . Machine Index 2 | . . . . . . . . . . 1 . 1 . . . . Terminal Index 2 | . . . . . . . . . . . . 1 . 1 . . Unreport Threat 8 | . . . . . . 2 . . . 3 . 2 . 1 . . Locate Traps 2 | . 1 . . . . . . . . 1 . . . . . . Transport Status 2 | . . . . . . . . . . 2 . . . . . . Recall Reinforcements 1 | . 1 . . . . . . . . . . . . . . . Hauler Manifests 4 | . . . . . . 1 . . . 3 . . . . . . Registered Components 1 | . . . . . . . . . . . . . . 1 . . Zone Layout 4 | . 1 . . . . 2 . . . 1 . . . . . . Garrison Registry 2 | . . . . . 1 . . . . . 1 . . . . . Security Stations 2 | . . . . . 1 . 1 . . . . . . . . . Derelict Proto ID Bank 1 | . . . 1 . . . . . . . . . . . . . Fabricator Hacks 9 | . . . . . . . . . . 7 . 2 . . . . Load Schematic 5 | . . . . . . . . . . 4 . 1 . . . . Build 4 | . . . . . . . . . . 3 . 1 . . . . Repair Station Hacks 8 | . . . . 3 . 3 . . . 2 . . . . . . Scan Component 4 | . . . . 2 . 1 . . . 1 . . . . . . Repair 3 | . . . . 1 . 1 . . . 1 . . . . . . Refit 1 | . . . . . . 1 . . . . . . . . . . Recycling Unit Hacks 9 | . 2 . . . . 2 . . . 2 . . . 3 . . Report Inventory 6 | . 1 . . . . 1 . . . 2 . . . 2 . . Retrieve Components 3 | . 1 . . . . 1 . . . . . . . 1 . . Scanalyzer 19 | . . . . . . . . . . 7 . 3 . 3 . 6 Insert Component 9 | . . . . . . . . . . 4 . 1 . 2 . 2 Analyze 10 | . . . . . . . . . . 3 . 2 . 1 . 4 Garrison Access Hacks 12 | . . . . 1 . 2 . . . 4 . 3 . 1 . 1 Unlock Access 4 | . . . . 1 . 1 . . . 1 . 1 . . . . Seal Access 7 | . . . . . . . . . . 3 . 2 . 1 . 1 Coupler Status 1 | . . . . . . 1 . . . . . . . . . . Unauthorized Hacks 29 | . . . . 2 . 7 1 . . 14 . 3 . 1 . 1 Terminals 15 | . . . . . . 3 1 . . 9 . 2 . . . . Track 6 | . . . . . . 1 1 . . 3 . 1 . . . . Assimilate 2 | . . . . . . . . . . 1 . 1 . . . . Botnet 5 | . . . . . . 1 . . . 4 . . . . . . Operators 2 | . . . . . . 1 . . . 1 . . . . . . Fabricators . | . . . . . . . . . . . . . . . . . Repair Stations 3 | . . . . 1 . . . . . . . 1 . . . 1 Mechanics 3 | . . . . 1 . . . . . . . 1 . . . 1 Recycling Units 5 | . . . . . . 1 . . . 3 . . . 1 . . Reject 3 | . . . . . . . . . . 2 . . . 1 . . Recyclers 1 | . . . . . . . . . . 1 . . . . . . Mask 1 | . . . . . . 1 . . . . . . . . . . Scanalyzers . | . . . . . . . . . . . . . . . . . Garrison Access 6 | . . . . 1 . 3 . . . 2 . . . . . . Broadcast 2 | . . . . . . 1 . . . 1 . . . . . . Reprogram 3 | . . . . 1 . 1 . . . 1 . . . . . . Watchers 1 | . . . . . . 1 . . . . . . . . . . Data Cores Recovered 5 | . 1 . . . . . . . . 2 . 1 . 1 . . Used 2 | . 1 . . . . . . . . . . . . 1 . . Hacking Detections 62 | . 6 . . 1 3 4 3 . . 15 2 14 2 7 . 5 Full Trace Events 12 | . 1 . . . 1 1 . . . 3 1 3 1 1 . . Feedback Events 1 | . . . . . . . . . . 1 . . . . . . Hackware Fried 1 | . . . . . . . . . . 1 . . . . . . Feedback Blocked . | . . . . . . . . . . . . . . . . . Robot Schematics Acquired 1 | . . . . . . . . . . 1 . . . . . . Robots Built . | . . . . . . . . . . . . . . . . . Authchips . | . . . . . . . . . . . . . . . . . Time . | . . . . . . . . . . . . . . . . . Total Robot Build Rating . | . . . . . . . . . . . . . . . . . Part Schematics Acquired 15 | . . . . . . 1 . . . 7 2 2 . 1 . 2 Parts Built 6 | . . . . . . . . . . 4 . 2 . . . . Authchips 1 | . . . . . . . . . . 1 . . . . . . Time 236 | . . . . . . . . . . 141 . 95 . . . . Total Part Build Rating 34 | . . . . . . . . . . 24 . 10 . . . . Parts Repaired 3 | . . . . 1 . 1 . . . 1 . . . . . . Time 92 | . . . . 44 . 32 . . . 16 . . . . . . Parts Recycled . | . . . . . . . . . . . . . . . . . Recycled Matter . | . . . . . . . . . . . . . . . . . Retrieved Matter . | . . . . . . . . . . . . . . . . . Retrieved Components 14 | . 3 . . . . 9 . . . . . . . 2 . . Parts Scanalyzed 8 | . . . . . . . . . . 3 . 1 . 2 . 2 Part Schematics Acquired 7 | . . . . . . . . . . 3 . 1 . 1 . 2 Parts Damaged . | . . . . . . . . . . . . . . . . . Bothacking | -11 -10 -10 -10 -8 -8 -8 -8 -7 -7 -6 -6 -6 -6 -5 -5 -5 ------------ Run | Yrd Mat Min Sub Mat Gar Mat Gar Fac DSF Fac Gar Fac Gar Fac Was Fac Used RIF Installer 5 | . . . . . 1 . 1 . . . 2 . 1 . . . Coupler Efficiency 1 | . . . . . . . . . . . 1 . . . . . Robot Detection 1 | . . . . . . . 1 . . . . . . . . . Watcher Feeds 1 | . . . . . . . . . . . 1 . . . . . Program Shield 1 | . . . . . . . . . . . . . 1 . . . Robots Hacked 79 | . . . . . . . 2 . 2 24 8 12 10 11 5 5 Non-combat 25 | . . . . . . . . . . 9 . 8 1 6 . 1 Combat 54 | . . . . . . . 2 . 2 15 8 4 9 5 5 4 Robot Hacks Applied 109 | . . . . . . . 2 . 2 31 8 24 19 11 6 6 parse_system 4 | . . . . . . . 1 . . 1 1 . . . 1 . no_distress 1 | . . . . . . . . . . . . 1 . . . . find_chute 2 | . . . . . . . . . . 1 . . . 1 . . hold_bot 1 | . . . . . . . . . . . . 1 . . . . map_walls 2 | . . . . . . . . . . . . . . 2 . . map_earth 2 | . . . . . . . . . . 1 . 1 . . . . find_fabricator 1 | . . . . . . . . . . . . . . . . 1 drop_inventory 10 | . . . . . . . . . . 4 . 4 . 2 . . locate_stockpiles 1 | . . . . . . . . . . 1 . . . . . . purge_threat 24 | . . . . . . . . . . 4 . 10 10 . . . locate_traps 1 | . . . . . . . . . . . . 1 . . . . block_reporting 2 | . . . . . . . . . . . . 2 . . . . recall_investigation 1 | . . . . . . . . . . 1 . . . . . . map_route 2 | . . . . . . . . . . 1 . . . 1 . . ignore_targets 5 | . . . . . . . . . . . . . . . 5 . find_garrison 1 | . . . . . . . . . . . . . . . . 1 scatter_targeting 2 | . . . . . . . . . . 1 . . . . . 1 disrupt_area 4 | . . . . . . . . . . 2 1 . 1 . . . disable_weapons 1 | . . . . . . . . . . 1 . . . . . . reboot_system 2 | . . . . . . . . . . 1 . 1 . . . . overwrite_iff 8 | . . . . . . . . . 1 3 3 . 1 . . . streamctrl_low 1 | . . . . . . . . . . 1 . . . . . . streamctrl_high 1 | . . . . . . . . . . . 1 . . . . . formatsys_low 1 | . . . . . . . . . . 1 . . . . . . formatsys_high 29 | . . . . . . . 1 . 1 7 2 3 7 5 . 3 Relay Couplers Released 30 | . . . . . 7 . 9 . . . 7 . 7 . . . Machine Destruction 29 | . . . . . 6 . 9 . . . 7 . 7 . . . Programmers 1 | . . . . . 1 . . . . . . . . . . . Attached 18 | . . . . . 1 . 4 . 1 1 3 2 6 . . . Fabnet Peak Effective % . | . . . . . . . . . . . . . . . . . Robots Rewired 14 | . . . . . 2 . 6 . . . 1 . 5 . . . Allies Hacked . | . . . . . . . . . . . . . . . . . Hacks Repelled . | . . . . . . . . . . . . . . . . . Allies | -11 -10 -10 -10 -8 -8 -8 -8 -7 -7 -6 -6 -6 -6 -5 -5 -5 -------- Run | Yrd Mat Min Sub Mat Gar Mat Gar Fac DSF Fac Gar Fac Gar Fac Was Fac Total Allies 79 | . . 2 11 . 2 2 7 . 2 14 9 6 13 5 3 3 Largest Group 14 | . . 2 8 8 2 2 6 1 2 9 3 3 11 14 5 5 Highest-Rated Group 567 | . . 41 148 148 51 30 159 15 119 410 147 151 442 567 174 175 Highest-Rated Ally 116 | . . 31 31 19 31 15 31 15 90 90 99 90 116 85 41 49 Total Orders 4 | . . . . . 2 . 2 . . . . . . . . . STAY 2 | . . . . . 1 . 1 . . . . . . . . . FOLLOW 2 | . . . . . 1 . 1 . . . . . . . . . Ally Attacks 662 | . . . 43 39 5 . 49 . 13 136 85 56 45 109 57 25 Total Damage 15692 | . . . 573 530 101 . 1215 . 240 3949 1907 1180 1488 2470 1355 684 Kills 113 | . . . 6 6 1 . 2 . 2 37 15 2 11 25 1 5 Allies Corrupted 1 | . . . . . . . . . . . . . . 1 . . Allies Melted 2 | . . . . . . . . . . . . . 1 . . 1 Intel | -11 -10 -10 -10 -8 -8 -8 -8 -7 -7 -6 -6 -6 -6 -5 -5 -5 ------- Run | Yrd Mat Min Sub Mat Gar Mat Gar Fac DSF Fac Gar Fac Gar Fac Was Fac Robot Analysis Total 4 | . 3 . . . . 1 . . . . . . . . . . Derelict Logs Recovered 2 | . . 1 1 . . . . . . . . . . . . . Drone Launches . | . . . . . . . . . . . . . . . . . Drone Recoveries . | . . . . . . . . . . . . . . . . . Exploration | -11 -10 -10 -10 -8 -8 -8 -8 -7 -7 -6 -6 -6 -6 -5 -5 -5 ------------- Run | Yrd Mat Min Sub Mat Gar Mat Gar Fac DSF Fac Gar Fac Gar Fac Was Fac Turns Passed 17459 | 97 1104 770 3094 506 1235 1156 1645 3 218 1828 1268 1844 1202 562 144 783 Spaces Moved 16431 | 74 843 501 2743 325 1232 877 1809 3 192 2129 1027 1757 1041 758 132 988 Core 2002 | 6 . . . 211 1232 532 20 . . . . . . 1 . . Treads 18 | . . . . . . . 18 . . . . . . . . . Legs . | . . . . . . . . . . . . . . . . . Wheels 3300 | 68 843 501 1888 . . . . . . . . . . . . . Hover 8177 | . . . . . . . 151 3 192 2129 1027 1757 1041 757 132 988 Flight 2934 | . . . 855 114 . 345 1620 . . . . . . . . . Fastest Speed 40 | 50 80 95 40 40 50 40 40 53 53 55 56 58 58 58 58 58 Average Speed 64 | 84 88 95 88 85 52 46 43 53 57 58 64 58 58 58 58 58 Slowest Speed 300 | 90 95 95 155 200 100 50 170 53 58 71 110 58 58 300 58 58 Overloaded Moves . | . . . . . . . . . . . . . . . . . Propulsion Burnouts . | . . . . . . . . . . . . . . . . . Robots Hopped 19 | . . . . . . 2 17 . . . . . . . . . Cave-ins Triggered . | . . . . . . . . . . . . . . . . . Exploration Rate (%) 70 | 4 96 93 97 29 97 56 97 . 97 55 85 65 96 27 86 44 Regions Visited 16 Branch Regions 2 Pre-discovered Areas 3 | . . 1 2 . . . . . . . . . . . . . Known Exits Taken 6 | . 1 . . 1 . 1 . 1 . 1 . 1 . . . . Unknown Exits Taken 3 | 1 . 1 1 . . . . . . . . . . . . . Scrap Searched 11 | . . 1 10 . . . . . . . . . . . . . Spaces Dug 68 | . . . 28 1 19 . 11 . . . . 3 . . . 6 Terrain Destroyed 487 | . 9 25 34 4 94 . 179 . . 28 73 13 1 2 . 25 Melee 46 | . . . 6 1 19 . 11 . . . . 3 . . . 6 Projectile 48 | . . . 28 3 . . . . . . . 10 . 2 . 5 AOE 392 | . 9 25 . . 75 . 168 . . 28 73 . . . . 14 Terrain Rammed . | . . . . . . . . . . . . . . . . . Walls Destroyed . | . . . . . . . . . . . . . . . . . Machines Disabled . | . . . . . . . . . . . . . . . . . Actions | -11 -10 -10 -10 -8 -8 -8 -8 -7 -7 -6 -6 -6 -6 -5 -5 -5 --------- Run | Yrd Mat Min Sub Mat Gar Mat Gar Fac DSF Fac Gar Fac Gar Fac Was Fac Total 21525 | 91 1062 769 3268 495 1674 1426 2458 3 263 2564 1459 2320 1504 859 185 1125 Wait 2170 | 3 101 243 333 71 172 285 272 . 15 105 70 242 180 30 34 14 Move 16386 | 73 842 500 2742 324 1231 872 1782 2 191 2128 1026 1756 1040 758 131 988 Hop 11 | . . . . . . 2 9 . . . . . . . . . Pick Up 64 | . 6 . 6 1 4 5 10 . 2 9 5 5 3 1 1 6 Fast Attach 115 | 7 10 3 11 6 2 11 8 . 4 10 18 5 4 6 . 10 Attach 24 | . . . 2 2 4 1 2 . . 7 1 2 . 1 . 2 Detach 10 | . . . . 5 2 . . . . 2 . 1 . . . . Swap 81 | 1 9 4 1 . . 18 9 . 4 10 7 4 6 3 1 4 Drop 135 | . 17 3 17 5 4 11 13 . 9 12 22 8 5 1 1 7 Fire 1099 | 7 71 15 108 23 10 98 142 1 34 204 95 80 142 22 7 40 Melee 593 | . . . 10 35 142 79 35 . . . 70 135 44 7 10 26 Ram 2 | . . . . . . . . . . 1 . . . 1 . . Kick . | . . . . . . . . . . . . . . . . . Crush . | . . . . . . . . . . . . . . . . . Escape Stasis 151 | . . . . . 41 . 72 . . . 31 1 6 . . . Rewire 40 | . . . . . 4 . 33 . . 1 . . 1 1 . . Trap 2 | . . . . . . . . . . . . . . . . 2 Miscellaneous 642 | . 6 1 38 23 58 44 71 . 4 75 114 81 73 28 . 26 Route ------- -11/Scrapyard -10/Materials (discovered 5 exits: [*Mat x3] / *Min / Sub) -10/Mines (discovered 3 exits: [*Mat x2] / *Sub) -10/Subcaves (discovered 3 exits: *Mat x2 / [*Rec]) -8/Materials (discovered 4 exits: Fac / *Sto x2 / Gar) -8/Garrison (discovered 3 exits: *Mat x3) -8/Materials (discovered 3 exits: *Fac / *Sto / Gar) -8/Garrison (discovered 3 exits: *Fac x3) -7/Factory -7/DSF -6/Factory (discovered 7 exits: *Fac x4 / *Low x2 / Gar) -6/Garrison (discovered 3 exits: *Fac x3) -6/Factory (discovered 4 exits: *Fac x3 / Gar) -6/Garrison (discovered 3 exits: *Fac x3) -5/Factory -5/Waste -5/Factory (discovered 2 exits: [*Fac] / [*Upp]) History --------- Turn | Location | Event 7 | -11/Scrapyard | Upgraded with Propulsion slot (x1) 7 | -11/Scrapyard | Upgraded with Utility slot (x1) 7 | -11/Scrapyard | Upgraded with Weapon slot (x1) 20 | -11/Scrapyard | Discovered new exit (range 16) 98 | -11/Scrapyard | Entered Materials 308 | -10/Materials | Build established: Mutant 308 | -10/Materials | Discovered new exit (range 12) 380 | -10/Materials | Core integrity fell below 50% 431 | -10/Materials | Discovered new exit (range 11) 447 | -10/Materials | Reached level 2 476 | -10/Materials | Discovered new exit (range 3) 480 | -10/Materials | Identified exit to Mines 491 | -10/Materials | Upgraded with Utility slot (x2) 631 | -10/Materials | Discovered new exit (range 7) 935 | -10/Materials | Discovered new exit (range 16) 1202 | -10/Materials | Entered Mines 1232 | -10/Mines | Reached level 3 1232 | -10/Mines | Discovered new exit (range 12) 1405 | -10/Mines | Discovered new exit (range 9) 1547 | -10/Mines | A weapon hastily lodged in a ceiling crevice suddenly fell to the ground 1561 | -10/Mines | Learned location of Storage (-8) 1658 | -10/Mines | Learned 2 Materials zone layouts 1662 | -10/Mines | Found a hidden stash of uninstalled traps 1684 | -10/Mines | Found a damaged Exp. Sensor Array with a note attached 1686 | -10/Mines | Found Prototype Device 1686 | -10/Mines | Identified Exp. Sensor Array 1773 | -10/Mines | Discovered new exit (range 16) 1972 | -10/Mines | Entered Subcaves 1972 | -10/Subcaves | Accompanied by 2 allies 1974 | -10/Subcaves | Reached level 4 1977 | -10/Subcaves | Ambushed by Subdwellers from Twisted Machinery 1977 | -10/Subcaves | Led the pair of lost Derelicts to an unsafe place 1986 | -10/Subcaves | Ambushed by angry Subdweller bent on revenge 2010 | -10/Subcaves | Upgraded with Utility slot (x1) 2363 | -10/Subcaves | Shifting Twisted Machinery released Sub. Machine Gun 2364 | -10/Subcaves | Shifting Twisted Machinery released Flamer 2495 | -10/Subcaves | Visited 4L-MR0's lab 2500 | -10/Subcaves | Upgraded with Propulsion slot (x1) 2676 | -10/Subcaves | Shifting Twisted Machinery released Battle Cannon 2693 | -10/Subcaves | Shifting Twisted Machinery released Mak. Kinetic Plating 2865 | -10/Subcaves | Learned location of Zion (-6) 2899 | -10/Subcaves | Met a Zionite searching for "candidates" 2968 | -10/Subcaves | Ambushed by Subdwellers from Twisted Machinery 3082 | -10/Subcaves | Visited triangular shrine 3088 | -10/Subcaves | Found Prototype Device 3088 | -10/Subcaves | Identified V3-11A's Pendant 3093 | -10/Subcaves | Befriended Subdweller 3133 | -10/Subcaves | Befriended Subdweller 3143 | -10/Subcaves | Befriended Subdweller 3203 | -10/Subcaves | Shifting Twisted Machinery released Sub. Power Source 3207 | -10/Subcaves | Shifting Twisted Machinery released Scrap Shield 3271 | -10/Subcaves | Ambushed by Subdwellers from Twisted Machinery 3273 | -10/Subcaves | Befriended Subdweller 3273 | -10/Subcaves | Befriended Subdweller 3309 | -10/Subcaves | A swath of the cavern ceiling suddenly collapsed 3328 | -10/Subcaves | Discovered new exit (range 8) 3343 | -10/Subcaves | Befriended Subdweller 3343 | -10/Subcaves | Befriended Subdweller 3354 | -10/Subcaves | Visited Clippyterm 3413 | -10/Subcaves | Discovered new exit (range 6) 3603 | -10/Subcaves | Ambushed by Subdweller buried in earth 3608 | -10/Subcaves | Befriended Subdweller 4013 | -10/Subcaves | Build established: Hauler-Mutant 4370 | -10/Subcaves | Reached level 5 4371 | -10/Subcaves | Discovered new exit (range 17) 4547 | -10/Subcaves | Upgraded with Propulsion slot (x1) 4547 | -10/Subcaves | Found Flightbrick 4549 | -10/Subcaves | Attached Flightbrick, gained temporary slots: Utility x3 4603 | -10/Subcaves | Upgraded with Power slot (x1) 4655 | -10/Subcaves | Befriended Subdweller 4660 | -10/Subcaves | Befriended Subdweller 4828 | -10/Subcaves | Build established: Mutant 4840 | -10/Subcaves | Befriended Subdweller 5066 | -10/Subcaves | Entered Materials 5066 | -8/Materials | Accompanied by 8 allies 5067 | -8/Materials | Identified exit to Factory 5068 | -8/Materials | Reached level 6 5104 | -8/Materials | Identified exit to Storage 5145 | -8/Materials | Reached level 7 5200 | -8/Materials | Lost 7 allies 5310 | -8/Materials | Reached level 8 5323 | -8/Materials | Core integrity fell below 50% 5426 | -8/Materials | Repaired Broken Shield Generator 5449 | -8/Materials | Build established: Derelict-Assassin 5466 | -8/Materials | First assault squad dispatched 5554 | -8/Materials | Identified exit to Garrison 5572 | -8/Materials | Entered Garrison 5582 | -8/Garrison | Triggered checkpoint 5763 | -8/Garrison | Garrison Relay disabled 5763 | -8/Garrison | Reached level 9 5771 | -8/Garrison | Build established: Scout 5934 | -8/Garrison | Installed Relay Interface Framework 5944 | -8/Garrison | Triggered checkpoint 5945 | -8/Garrison | Reached level 10 5956 | -8/Garrison | Discovered new exit (range 14) 5980 | -8/Garrison | Triggered checkpoint 6019 | -8/Garrison | Garrison Relay disabled 6048 | -8/Garrison | Triggered checkpoint 6087 | -8/Garrison | Discovered new exit (range 12) 6089 | -8/Garrison | Learned Materials security intel 6134 | -8/Garrison | Garrison Relay disabled 6138 | -8/Garrison | Triggered checkpoint 6191 | -8/Garrison | Reached level 11 6256 | -8/Garrison | Triggered checkpoint 6277 | -8/Garrison | Discovered new exit (range 16) 6282 | -8/Garrison | Triggered checkpoint 6313 | -8/Garrison | Core integrity fell below 20% 6348 | -8/Garrison | Discovered new exit (range 92) 6348 | -8/Garrison | Discovered new exit (range 58) 6348 | -8/Garrison | Discovered new exit (range 20) 6426 | -8/Garrison | Garrison Relay disabled 6545 | -8/Garrison | Phase Generator disabled 6650 | -8/Garrison | Triggered checkpoint 6678 | -8/Garrison | Triggered checkpoint 6754 | -8/Garrison | Garrison Relay disabled 6807 | -8/Garrison | Entered Materials 6847 | -8/Materials | Reached level 12 6919 | -8/Materials | Build established: Hacker-Scout 7544 | -8/Materials | Discovered exit to Factory (range 16) 7558 | -8/Materials | Upgraded with Utility slot (x1) 7607 | -8/Materials | First assault squad dispatched 7633 | -8/Materials | Repaired Shield Generator 7658 | -8/Materials | Upgraded with Utility slot (x2) 7658 | -8/Materials | Upgraded with Weapon slot (x1) 7786 | -8/Materials | Discovered exit to Storage (range 7) 7816 | -8/Materials | Build established: Hacker-Mutant 7818 | -8/Materials | Reached level 13 7928 | -8/Materials | Identified exit to Garrison 7932 | -8/Materials | Garrison activated, responded to threat 7963 | -8/Materials | Entered Garrison 7963 | -8/Garrison | Accompanied by 2 allies 7992 | -8/Garrison | Triggered checkpoint 8030 | -8/Garrison | Garrison Relay disabled 8064 | -8/Garrison | Triggered checkpoint 8141 | -8/Garrison | Triggered checkpoint 8191 | -8/Garrison | Build established: Hacker-Gunner 8262 | -8/Garrison | Discovered exit to Factory (range 9) 8278 | -8/Garrison | Triggered checkpoint 8290 | -8/Garrison | Garrison Relay disabled 8459 | -8/Garrison | Learned Factory security intel 8467 | -8/Garrison | Garrison Relay disabled 8478 | -8/Garrison | Triggered checkpoint 8486 | -8/Garrison | Triggered checkpoint 8515 | -8/Garrison | Expanded RIF knowledge: Robot Detection 8534 | -8/Garrison | Triggered checkpoint 8558 | -8/Garrison | Triggered checkpoint 8573 | -8/Garrison | Reached level 14 8594 | -8/Garrison | Discovered exit to Factory (range 15) 8642 | -8/Garrison | Build established: Hacker-Mutant 8669 | -8/Garrison | Phase Generator disabled 8670 | -8/Garrison | Upgraded with Utility slot (x1) 8766 | -8/Garrison | Spotted B-75 Beast 8780 | -8/Garrison | Spotted B-75 Beast 8792 | -8/Garrison | Triggered checkpoint 8806 | -8/Garrison | Discovered exit to Factory (range 10) 8910 | -8/Garrison | Triggered checkpoint 8952 | -8/Garrison | Garrison Relay disabled 8976 | -8/Garrison | Build established: Hacker-Scout 9132 | -8/Garrison | Destroyed B-75 Beast 9150 | -8/Garrison | Triggered checkpoint 9228 | -8/Garrison | Garrison Relay disabled 9240 | -8/Garrison | Garrison Relay disabled 9364 | -8/Garrison | Destroyed B-75 Beast 9397 | -8/Garrison | Lost 4 allies 9608 | -8/Garrison | Entered Factory 9608 | -7/Factory | Accompanied by 1 ally 9610 | -7/Factory | Reached level 15 9611 | -7/Factory | Identified exit to DSF 9611 | -7/Factory | Entered DSF 9611 | -7/DSF | Accompanied by 1 ally 9612 | -7/DSF | Joined Warlord attack on 0b10 via DSF 9636 | -7/DSF | Additional patrols routed to DSF 9645 | -7/DSF | Discovered new exit (range 16) 9685 | -7/DSF | Build established: Hacker-Tank 9814 | -7/DSF | Reached level 16 9829 | -7/DSF | Entered Factory 9829 | -6/Factory | Accompanied by 1 ally 9831 | -6/Factory | Reached level 17 9841 | -6/Factory | Identified exit to Factory 9875 | -6/Factory | Central database locked down 9880 | -6/Factory | Upgraded with Utility slot (x1) 10044 | -6/Factory | Discovered new exit (range 11) 10163 | -6/Factory | Repaired Shield Generator 10295 | -6/Factory | Fabricated Adv. Shield Generator? 10512 | -6/Factory | Reached level 18 10541 | -6/Factory | Identified exit to Lower Caves 10615 | -6/Factory | Build established: Hacker-Skirmisher 10649 | -6/Factory | Upgraded with Utility slot (x1) 10748 | -6/Factory | Identified exit to Garrison 10981 | -6/Factory | Reached level 19 10988 | -6/Factory | Garrison activated, responded to threat 11131 | -6/Factory | Fabricated Cmb. Gravmag System? 11164 | -6/Factory | Fabricated Cmb. Gravmag System? 11205 | -6/Factory | Lost 3 allies 11229 | -6/Factory | First assault squad dispatched 11396 | -6/Factory | Core integrity fell below 50% 11455 | -6/Factory | Imp. Hacking Suite fried by hacking feedback 11494 | -6/Factory | Reached level 20 11528 | -6/Factory | Core integrity fell below 20% 11544 | -6/Factory | High security lockdown imminent 11624 | -6/Factory | High security lockdown engaged 11657 | -6/Factory | Entered Garrison 11714 | -6/Garrison | Garrison Relay disabled 11720 | -6/Garrison | Triggered checkpoint 11866 | -6/Garrison | Build established: Hacker-Tank 11883 | -6/Garrison | Rescued a captive Derelict 11884 | -6/Garrison | Rescued a captive Derelict 11918 | -6/Garrison | Triggered checkpoint 12006 | -6/Garrison | Garrison Relay disabled 12032 | -6/Garrison | Discovered new exit (range 4) 12052 | -6/Garrison | Triggered checkpoint 12118 | -6/Garrison | Upgraded with Weapon slot (x1) 12173 | -6/Garrison | Garrison Relay disabled 12183 | -6/Garrison | Discovered new exit (range 68) 12183 | -6/Garrison | Discovered new exit (range 36) 12183 | -6/Garrison | Discovered new exit (range 21) 12264 | -6/Garrison | Spotted Executioner 12282 | -6/Garrison | Destroyed Executioner 12353 | -6/Garrison | Rewired Striker 12359 | -6/Garrison | Found Prototype Processor 12359 | -6/Garrison | Identified Exp. Core Analyzer 12382 | -6/Garrison | Triggered checkpoint 12404 | -6/Garrison | Triggered checkpoint 12418 | -6/Garrison | Reached level 21 12463 | -6/Garrison | Lost 3 allies 12496 | -6/Garrison | Spotted B-75 Beast 12515 | -6/Garrison | Allies destroyed B-75 Beast 12626 | -6/Garrison | Expanded RIF knowledge: Watcher Feeds 12632 | -6/Garrison | Triggered checkpoint 12641 | -6/Garrison | Garrison Relay disabled 12655 | -6/Garrison | Expanded RIF knowledge: Coupler Efficiency 12665 | -6/Garrison | Build established: Bothacker-Gunner 12705 | -6/Garrison | Triggered checkpoint 12706 | -6/Garrison | Garrison Relay disabled 12829 | -6/Garrison | Upgraded with Propulsion slot (x1) 12902 | -6/Garrison | Phase Generator disabled 12925 | -6/Garrison | Entered Factory 12925 | -6/Factory | Accompanied by 1 ally 13124 | -6/Factory | Discovered exit to Factory (range 16) 13175 | -6/Factory | Fabricated Imp. System Restoration Module? 13275 | -6/Factory | First assault squad dispatched 13892 | -6/Factory | Allied Derelicts emerged from ambush trap array 13975 | -6/Factory | Lost 3 allies 14008 | -6/Factory | Discovered exit to Factory (range 9) 14668 | -6/Factory | Discovered exit to Factory (range 11) 14696 | -6/Factory | Garrison activated, responded to threat 14769 | -6/Factory | Identified exit to Garrison 14769 | -6/Factory | Entered Garrison 14809 | -6/Garrison | Reached level 22 14886 | -6/Garrison | Triggered checkpoint 14892 | -6/Garrison | Heavy support dispatched to Factory 14916 | -6/Garrison | Garrison Relay disabled 14933 | -6/Garrison | Expanded RIF knowledge: Program Shield 14941 | -6/Garrison | Triggered checkpoint 15032 | -6/Garrison | Triggered checkpoint 15056 | -6/Garrison | Triggered checkpoint 15090 | -6/Garrison | Discovered exit to Factory (range 11) 15093 | -6/Garrison | Spotted B-86 Titan 15098 | -6/Garrison | Rewired B-86 Titan 15099 | -6/Garrison | Rewired B-75 Beast 15128 | -6/Garrison | Destroyed B-86 Titan 15314 | -6/Garrison | Triggered checkpoint 15330 | -6/Garrison | Garrison Relay disabled 15511 | -6/Garrison | Garrison Relay disabled 15524 | -6/Garrison | Discovered exit to Factory (range 16) 15548 | -6/Garrison | H-XX Assembler disabled 15626 | -6/Garrison | Triggered checkpoint 15651 | -6/Garrison | Discovered exit to Factory (range 12) 15712 | -6/Garrison | Triggered checkpoint 15736 | -6/Garrison | Garrison Relay disabled 15971 | -6/Garrison | Entered Factory 15971 | -5/Factory | Accompanied by 10 allies 16020 | -5/Factory | Discovered new exit (range 24) 16022 | -5/Factory | Build established: Commander-Gunner 16316 | -5/Factory | Reached level 23 16318 | -5/Factory | Upgraded with Utility slot (x1) 16368 | -5/Factory | Lost 3 allies 16507 | -5/Factory | Lost 3 allies 16533 | -5/Factory | Sucked down chute 16533 | -5/Factory | Entered Waste 16533 | -5/Waste | Met up with 2 allies sucked down the chute earlier 16534 | -5/Waste | Met a frightened Derelict 16537 | -5/Waste | Spotted C-40 Crusher 16546 | -5/Waste | Spotted C-40 Crusher 16548 | -5/Waste | EMP discharged 16548 | -5/Waste | System corruption reached 10% 16550 | -5/Waste | 2 allies followed down the chute 16564 | -5/Waste | Spotted C-40 Crusher 16570 | -5/Waste | Spotted C-40 Crusher 16589 | -5/Waste | Spotted C-40 Crusher 16590 | -5/Waste | Spotted C-40 Crusher 16598 | -5/Waste | Discovered new exit (range 11) 16632 | -5/Waste | Destroyed C-40 Crusher 16648 | -5/Waste | EMP discharged 16677 | -5/Waste | Entered Factory 16677 | -5/Factory | Accompanied by 4 allies 16809 | -5/Factory | Garrison activated, responded to threat 16852 | -5/Factory | Lost 3 allies 16912 | -5/Factory | Lost 3 allies 16927 | -5/Factory | Discovered new exit (range 6) 16977 | -5/Factory | Build established: Bothacker-Gunner 17277 | -5/Factory | First assault squad dispatched 17277 | -5/Factory | Discovered new exit (range 15) 17406 | -5/Factory | Core integrity fell below 50% 17427 | -5/Factory | Core integrity fell below 20% 17460 | -5/Factory | Destroyed self via exploding Power Conduit Last Messages --------------- 17439_ Imp. Trap Extractor dropped Fusion Bomb Trap. 17440_ Installed Fusion Bomb Trap. 17440_ Slug penetrates Wall. 17441_ Manufacturing Mainframe disabled. 17442_ P-70 Sage triggered Fusion Bomb Trap. 17442_ An explosion rips through the floor. 17442_ Manufacturing Mainframe disabled. 17443_ Penetrated by Slug. 17443_ Slug penetrates Wall. 17444_ >> Watcher Feeds: Feed link from W-25 Informer lost. 17444_ >> Watcher Feeds: Feed link from W-25 Informer lost. 17460_ Power Conduit explodes. 17460_ M-28 Smith destroyed. 17460_ Power Conduit explodes. 17460_ P-70 Sage destroyed. 17460_ Destroyed Imp. Heat Sink. 17460_ P-70 Sage destroyed. Map ----- +----------------------------------------------------+ | ^ / """" ####??#??#?# [! #? | | *%/ """" ##?#??#?##???? #? | | %^ """" #?#???#??##?######+###? | | ! ##?##??##???#?? ???? | | #### "" " """" #??##??###?#??#??? ??? | | # ## """" """" ######?####??????##??????? " | | #### """ """" #######? ?? ? ? ??????"? ? | | #### """" """" + ? ? ???"????????? | | #### """ """" ####### ??? ???#???? ??? | | #########= """ """" #?#?##??? "?" "?????"?"?? | | # % ######?? ""?? ??????????? | | +/*"""" """" #??##??? ??"??? ? ??????? | | """" #%="""" """" ######?? ? ? ?????????? ? | | """" #= """" """" #######? ""??"?? ?????????? | | """" # """" """" ###??##?? ?"??"????????????? | | """" # """ """" ##??##?? ""??"?? ????????? | | ? # """ """" ####?#? ? ????? ?????? ???? | | # b #####?# ?? ????? ?? ??????? | | ! # #######?###????#?#?????????? | | ######### == ########?????#???#?? ? ????? | | ###?##### =! ########??##?#???#?? ?? ?#?? | | ####### =! ####?##??#????#???????? | | ######## h ; ###?#??#??##???+????+ | | ######## ; ####?#????? ?? ????? | | ####### ####;;;;;;;;;;##?#### ??"?? ??? ?? | | ## # g @ # ???????????"? ?? | | ##! # %%#?????????????????? | | ## """ + ###?#? ???????????? | | ?# """ "" # [* ####?# ????"??????? | | ?# """ " "" # %[ !##?###???????"????? | | ## """" """ """ ; %%#?#???? ??????? ? | | #? # [#?#### ???? ??????? | | ################################????#????#???????? | | #??#?#?###?#?######?##?##?#?##??#??#?##??#???????? | | ####?##?#???#??##?#?#####?#??#?##??##?#??#?#?????? | | ???#?#??##??#??##???###???#? ???#??????#??????? | | ############################ ? ?###???#?????????? | | #??##???####?#?##???? | | ################# # #??#????? ??#???????? | | #?? ?? ???#?????#+##???? ???????#??????? | | + ?? ## ? ?? ??#?# ???????????????? | | ######## # ?"?"?#? ????? ?# ? ???"???????????? | | #??#??#? #??""? ?#??? ? #??????"????##?????? | | #??????# # ???? ???? ?? ??# ? ?????????????? | | #???????????? ???#????? ##???? "???????????? | | #????? ?????###??????? #?? ???????????????? | | #?????????#????##????? #??????????????????? | | #??????????????##???? #???#????#?????????? | | #???????????????#???? #????? ????????????? | | /???????????????????? +??????????????????? | +----------------------------------------------------+ Best States ------------- Heat Dissipation 74 Energy Generation 48 Energy Capacity 530 Matter Stores 300 Matter Capacity 300 Sight Range 17 Robot Scan Range 20 Terrain Scan Range 20 Terrain Scan Density 210 Additional Mass Support 12 EM Shielding 3 Armor Coverage 800 Resistance: KI 30 Resistance: EM 20 Weapon Cycling 20 Evasion (%) 67 Targeting Accuracy 8 Core Analysis 8 Armor Integrity Analysis 40 Recoil Reduction 3 Salvage Targeting 2 Offensive Hacking 44 Defensive Hacking 30 Relay Coupler Types 4 Relay Coupler Value 225 Authchip Count 1 Trap Extractor Capacity 6 Item Schematics ----------------- Datajack | -8/Materials | Hacked Adv. Shield Generator | -6/Factory | Hacked Imp. Gravmag System | -6/Factory | Hacked Exp. Signal Interpreter | -6/Factory | Hacked Field Propulsion Array | -6/Factory | Hacked Adv. Field Recycling Unit | -6/Factory | Scanalyzed Cmb. Gravmag System | -6/Factory | Scanalyzed Imp. Weapon Cycler | -6/Factory | Scanalyzed Powered Armor | -6/Garrison | Hacked Imp. System Restoration Module | -6/Garrison | Hacked Hyp. Gauss Cannon | -6/Factory | Hacked Centrium Light Armor Plating | -6/Factory | Scanalyzed Gravity Neutralizer | -5/Factory | Scanalyzed Adv. System Restoration Module | -5/Factory | Scanalyzed Adv. System Shield | -5/Factory | Scanalyzed Robot Schematics ------------------ K-01 Serf | -6/Factory | Hacked Fabricated ------------ Adv. Shield Generator | x2 | -6/Factory | Authchip Cmb. Gravmag System | x2 | -6/Factory Imp. System Restoration Module | x2 | -6/Factory Alien Tech Used ----------------- None Achievements -------------- None Challenges ------------ None RPGLIKE | -11 -10 -10 -10 -8 -8 -8 -8 -7 -7 -6 -6 -6 -6 -5 -5 -5 --------- Run | Yrd Mat Min Sub Mat Gar Mat Gar Fac DSF Fac Gar Fac Gar Fac Was Fac Levels Raised 22 | . 1 1 2 3 3 2 1 1 1 4 1 . 1 1 . . XP Earned 37475 | 3000 2075 2050 2089 4745 5529 1805 2247 1049 1022 6122 1656 1078 625 1831 46 506 XP Spent 35920 | 2400 1900 . 4200 1800 2005 6800 2760 . . 6805 3750 . . 3500 . . Upgrades 47 | 7 2 . 6 3 8 4 3 . . 10 3 . . 1 . . Power Slot 1 | . . . 1 . . . . . . . . . . . . . Propulsion Slot 4 | 1 . . 2 . . . . . . . 1 . . . . . Utility Slot 11 | 1 2 . 1 . . 3 1 . . 2 . . . 1 . . Weapon Slot 3 | 1 . . . . . 1 . . . . 1 . . . . . Core Integrity 8 | . . . . . 3 . . . . 5 . . . . . . Heat Dissipation 5 | . . . . 1 . . 2 . . 2 . . . . . . Energy Generation 1 | . . . 1 . . . . . . . . . . . . . Mass Support 2 | . . . 1 . 1 . . . . . . . . . . . Inventory Capacity 5 | 2 . . . 2 . . . . . . 1 . . . . . Sight Range 1 | 1 . . . . . . . . . . . . . . . . Terrain Scan Density 2 | 1 . . . . . . . . . 1 . . . . . . Hack Attack % 2 | . . . . . 2 . . . . . . . . . . . Hack Defense % 2 | . . . . . 2 . . . . . . . . . . . Protomatter Created 3755 | . 75 78 231 151 429 476 516 . 14 393 332 571 301 11 . 177 Integrity Restored 13400 | . 132 9 713 409 1257 972 1534 . 77 1492 2485 1722 1588 548 . 462 Core 10372 | . 132 9 553 376 1240 972 1156 . 65 1204 1870 1551 762 331 . 151 Parts 3028 | . . . 160 33 17 . 378 . 12 288 615 171 826 217 . 311 Protomatter Decayed 937 | . . . 13 131 67 . 23 . 14 197 66 49 14 204 . 159 Game ------ Seed GravitonPulseNukerbomber Manual? 0 Play Time 04:40:14 Cumulative 587.2 hours Start 2024.03.05 @ 04:41:23 End 2024.03.10 @ 16:29:01 Sessions 7 Manual Loads 0 Difficulty Rogue Special Mode Winter2019/RPGLIKE Game No. 222 Rogue 200 Adventurer 3 Explorer 19 Win Type - Total 13 Types 8/2/1/1/0/1/0/0/0 Lore% 86 Gallery% 95 Achievement% 82 Wizard Run 0 Options --------- Layout 2 ASCII 0 Keyboard 0 Movement Numpad Keybinds 0 Fullscreen 2 Font 24/Smallcaps Map View 50x44 Zoom Use 0% Tactical HUD 1 Map Filters NONE Filters NONE Steam 1 RUN: 7de344da-f3e0-4f0c-84a2-29bf5a4287c6